bitfinex/quotes_BTCUSD_20251016
["timestamp","ask_amount","ask_price","bid_price","bid_amount"]
[1760607997267,0.00014946,111410.0,111400.0,0.2776636]
[1760607997476,0.00014946,111410.0,111400.0,0.26922333]
[1760607999054,0.05,111450.0,111430.0,0.17948487]
[1760607999261,0.05,111450.0,111440.0,0.28698052]
[1760607999262,0.05049792,111450.0,111440.0,0.28698052]
[1760607999487,0.05049792,111450.0,111440.0,1.15162956]
[1760607999703,0.05049792,111450.0,111440.0,0.28716837]
[1760607999923,0.05049792,111450.0,111440.0,0.26903365]
[1760608000587,0.0002,111500.0,111490.0,0.17938828]
[1760608000812,0.0002,111500.0,111480.0,0.17939093]
[1760608000813,0.0003494,111500.0,111480.0,0.17938927]
[1760608001035,0.1112294,111500.0,111480.0,0.26909393]
[1760608001248,0.1112294,111500.0,111450.0,0.37999945]
[1760608001249,0.1112294,111500.0,111450.0,0.27809208]
[1760608001482,0.1112294,111500.0,111480.0,0.26909439]
[1760608001704,0.1112294,111500.0,111480.0,0.26909302]
[1760608001978,0.1112294,111500.0,111480.0,0.08969012]
[1760608002429,0.0003494,111500.0,111490.0,0.2690784]
[1760608002656,0.0003494,111500.0,111490.0,0.08969012]
[1760608002877,0.34083952,111500.0,111480.0,0.01794043]
[1760608003093,0.2511494,111500.0,111460.0,0.10763377]
[1760608003336,0.52021238,111500.0,111460.0,0.10763377]
[1760608003555,0.2511494,111500.0,111460.0,0.29604199]
[1760608003769,0.43949066,111500.0,111460.0,0.08969012]
[1760608003989,0.00897021,111480.0,111460.0,0.01116524]
[1760608004222,0.04,111480.0,111460.0,0.01794365]
[1760608004671,0.20045012,111490.0,111460.0,0.01794365]
[1760608004933,0.0003494,111500.0,111480.0,0.17940437]
[1760608005143,0.1109894,111500.0,111490.0,0.01793882]
[1760608005627,0.1109894,111500.0,111490.0,0.10762894]
[1760608005880,0.1109894,111500.0,111490.0,0.28701722]
[1760608006090,0.1109894,111500.0,111490.0,0.2690784]
[1760608006532,0.1109894,111500.0,111490.0,0.08969012]
[1760608006827,0.0003494,111500.0,111490.0,0.01793882]
[1760608007039,0.2307094,111500.0,111480.0,0.01794043]
[1760608007475,0.49977624,111500.0,111470.0,0.01794204]
[1760608007697,0.0010001,111490.0,111470.0,0.01794204]
[1760608007932,0.1210001,111490.0,111470.0,0.01794204]
[1760608008169,0.12,111490.0,111470.0,0.01794204]
[1760608008852,0.0003494,111500.0,111480.0,0.17940437]
[1760608009078,0.0003494,111500.0,111490.0,0.01793882]
[1760608009297,0.0003494,111500.0,111480.0,0.08969012]
[1760608009530,0.1104294,111500.0,111490.0,0.01793882]
[1760608010035,0.0003494,111500.0,111490.0,0.28701722]
[1760608010263,0.0003494,111500.0,111490.0,0.6090784]
[1760608010937,0.0003494,111500.0,111490.0,0.2690784]
[1760608011167,0.1102294,111500.0,111490.0,0.08969012]
[1760608011401,0.1102294,111500.0,111490.0,0.09975659]
[1760608011621,0.1101894,111500.0,111490.0,0.28701722]
[1760608011843,0.1101894,111500.0,111490.0,0.2690784]
[1760608012284,0.1101894,111500.0,111490.0,0.08969012]
[1760608012493,0.1101894,111500.0,111490.0,0.28701722]
[1760608012710,0.1101894,111500.0,111490.0,0.2690784]
[1760608012929,0.1101894,111500.0,111490.0,0.08969012]
[1760608013408,0.0003494,111500.0,111490.0,0.10762894]
[1760608013653,0.00622541,111540.0,111530.0,0.17932394]
[1760608013866,0.00622541,111540.0,111530.0,0.26901406]
[1760608013867,0.00637467,111540.0,111530.0,0.26901406]
[1760608014956,0.00637467,111540.0,111530.0,0.08969012]
[1760608015169,0.00637467,111540.0,111530.0,0.28003029]
[1760608015382,0.00637467,111540.0,111530.0,0.26901406]
[1760608015592,0.00637467,111540.0,111530.0,0.08969012]
[1760608015803,0.00637467,111540.0,111530.0,0.10502185]
[1760608016023,0.00637467,111540.0,111500.0,0.2511102]
[1760608016258,0.00637467,111540.0,111510.0,0.10687735]
[1760608016468,0.40434397,111540.0,111510.0,0.01718723]
[1760608016680,0.40434397,111540.0,111510.0,0.01793561]
[1760608016893,0.0010001,111530.0,111510.0,0.01793561]
[1760608017122,0.10944,111520.0,111510.0,0.01793561]
[1760608017351,0.40978012,111520.0,111500.0,0.0717521]
[1760608017633,0.22944,111520.0,111500.0,0.08968931]
[1760608017850,0.22944,111520.0,111500.0,0.01793721]
[1760608018263,0.40878069,111520.0,111500.0,0.01793721]
[1760608018491,0.40878069,111520.0,111490.0,0.01793882]
[1760608018492,0.40878094,111520.0,111490.0,0.01793882]
[1760608018702,0.22944,111520.0,111500.0,0.08969012]
[1760608018935,0.22444,111520.0,111510.0,0.01793561]
[1760608019150,0.22444,111520.0,111500.0,0.01793721]
[1760608019356,0.41275443,111520.0,111490.0,0.01793882]
[1760608019999,0.22444,111520.0,111490.0,0.19732664]
[1760608020221,0.10904,111510.0,111490.0,0.01793882]
[1760608020463,0.21904,111510.0,111490.0,0.19732662]
[1760608020681,0.21904,111510.0,111490.0,0.01793882]
[1760608020894,0.18835769,111490.0,111450.0,0.0717521]
[1760608021140,0.10892,111480.0,111470.0,0.0717521]
[1760608021373,0.00156197,111530.0,111490.0,0.17938472]
[1760608021603,0.10888,111520.0,111510.0,0.17935253]
[1760608021831,0.10888,111520.0,111510.0,0.01793561]
[1760608022055,0.10888,111520.0,111510.0,0.01144936]
[1760608022282,0.00622541,111540.0,111510.0,0.28698184]
[1760608022499,0.00637467,111540.0,111530.0,0.17932394]
[1760608022721,0.11537467,111540.0,111530.0,0.10762251]
[1760608022936,0.11537467,111540.0,111500.0,0.17937111]
[1760608023156,0.10896,111530.0,111500.0,0.27928923]
[1760608023377,0.17896,111530.0,111500.0,0.08969012]
[1760608023592,0.17896,111530.0,111500.0,0.10743247]
[1760608023803,0.18830821,111520.0,111470.0,0.25117257]
[1760608024072,0.109,111510.0,111480.0,0.28703489]
[1760608024284,0.10896,111500.0,111490.0,0.01793882]
[1760608024500,0.2299601,111500.0,111470.0,0.0717521]
[1760608024719,0.10892,111490.0,111480.0,0.10763055]
[1760608024955,0.10892,111490.0,111480.0,0.01794043]
[1760608025213,0.10888,111490.0,111470.0,0.1973609]
[1760608025429,0.10888,111490.0,111470.0,0.28720084]
[1760608025642,0.10888,111490.0,111470.0,0.2692588]
[1760608025855,0.10888,111490.0,111470.0,0.26925947]
[1760608026370,0.10888,111490.0,111470.0,0.08983952]
[1760608026588,0.10876,111480.0,111470.0,0.0001494]
[1760608027032,0.22876,111480.0,111470.0,0.0001494]
[1760608027470,0.12,111480.0,111470.0,0.0001494]
[1760608027714,0.15864,111480.0,111470.0,0.0001494]
[1760608027942,0.22940437,111480.0,111470.0,0.0001494]
[1760608028191,0.1586,111480.0,111470.0,0.0001494]
[1760608028400,0.15856,111480.0,111470.0,0.0001494]
[1760608028630,0.15856,111480.0,111470.0,0.01809144]
[1760608028865,0.15856,111480.0,111470.0,0.0001494]
[1760608029098,0.80471687,111480.0,111470.0,0.0001494]
[1760608029327,0.7868138,111480.0,111470.0,0.0001494]
[1760608029815,0.6783738,111480.0,111470.0,0.0001494]
[1760608030042,0.06927931,111480.0,111470.0,0.0001494]
[1760608030298,0.42753449,111480.0,111470.0,0.0001494]
[1760608030522,0.17946877,111440.0,111430.0,0.00058539]
[1760608030754,0.88478127,111440.0,111430.0,0.00108331]
[1760608030974,0.60305915,111440.0,111430.0,0.00108331]
[1760608031185,0.37145915,111440.0,111430.0,0.00108331]
[1760608031397,0.2384,111440.0,111430.0,0.01903179]
[1760608031644,0.50755889,111440.0,111430.0,0.00108331]
[1760608031847,0.39915889,111440.0,111430.0,0.00108331]
[1760608032065,0.52668761,111440.0,111430.0,0.00108331]
[1760608032278,0.56286989,111440.0,111430.0,0.00108331]
[1760608032492,0.90286989,111440.0,111430.0,0.00108331]
[1760608032713,0.86668761,111440.0,111430.0,0.00108331]
[1760608032977,0.90286989,111440.0,111430.0,0.00108331]
[1760608033198,0.79458989,111440.0,111430.0,0.00108331]
[1760608033638,6.4512208,111440.0,111430.0,0.00108331]
[1760608033872,6.45925071,111440.0,111430.0,0.00108331]
[1760608034082,5.98296897,111440.0,111430.0,0.00108331]
[1760608034324,5.93478952,111440.0,111430.0,0.00108331]
[1760608034541,6.48324096,111440.0,111430.0,0.00108331]
[1760608035212,6.45112133,111440.0,111430.0,0.00108331]
[1760608035486,6.45112133,111440.0,111360.0,0.17959639]
[1760608035487,0.03618228,111360.0,111330.0,0.0717521]
[1760608035678,0.03618228,111360.0,111330.0,0.07190156]
[1760608035679,0.55581224,111340.0,111330.0,0.07190156]
[1760608035895,0.63346228,111340.0,111330.0,0.07190156]
[1760608036115,0.63346228,111340.0,111330.0,0.08017846]
[1760608036116,0.22856,111340.0,111330.0,0.08017846]
[1760608036332,0.34,111370.0,111330.0,0.00842636]
[1760608036590,0.10856,111360.0,111330.0,0.30470947]
[1760608036837,0.06490228,111390.0,111340.0,0.08969012]
[1760608036838,0.18852719,111390.0,111340.0,0.08969012]
[1760608037058,0.18852719,111390.0,111350.0,0.17961253]
[1760608037059,0.10852,111380.0,111350.0,0.17961253]
[1760608037281,0.02,111380.0,111360.0,0.17959528]
[1760608037498,0.10852,111370.0,111360.0,0.2692854]
[1760608037926,0.25723896,111430.0,111380.0,0.17955302]
[1760608038149,0.08969012,111420.0,111380.0,0.17955302]
[1760608038358,0.50652777,111420.0,111370.0,0.17956642]
[1760608038574,0.50652777,111420.0,111370.0,0.34102256]
[1760608038795,0.31805012,111420.0,111380.0,0.17956481]
[1760608039024,0.20969012,111420.0,111400.0,0.17952968]
[1760608039250,0.12,111420.0,111410.0,0.0179517]
[1760608039539,0.12,111420.0,111390.0,0.17954834]
[1760608039540,0.04,111430.0,111400.0,0.19748631]
[1760608039764,0.10836,111420.0,111410.0,0.19746611]
[1760608039989,0.04,111430.0,111420.0,0.17950098]
[1760608040205,0.14832,111430.0,111420.0,0.19745107]
[1760608040647,1.01790886,111430.0,111370.0,0.2513235]
[1760608040863,0.10864676,111420.0,111390.0,0.0717521]
[1760608041088,0.1088,111410.0,111390.0,0.0717521]
[1760608041310,0.04,111430.0,111400.0,0.01795332]
[1760608041533,0.10876,111420.0,111400.0,0.01795332]
[1760608041749,0.17951762,111410.0,111390.0,0.00014946]
[1760608041969,0.28821321,111400.0,111390.0,0.00014946]
[1760608042186,0.40821321,111400.0,111390.0,0.00014946]
[1760608042411,1.07934296,111400.0,111390.0,0.00014946]
[1760608042846,0.53408561,111400.0,111390.0,0.00014946]
[1760608043328,0.87408561,111400.0,111390.0,0.00014946]
[1760608043549,5.87408561,111400.0,111390.0,0.00014946]
[1760608043760,6.45708909,111400.0,111390.0,0.00014946]
[1760608044207,6.45708909,111400.0,111300.0,0.0717521]
[1760608044208,0.00897907,111370.0,111300.0,0.0717521]
[1760608044420,0.08969012,111350.0,111330.0,0.0717521]
[1760608044665,0.22864676,111350.0,111330.0,0.0717521]
[1760608044883,0.12,111350.0,111330.0,0.01676401]
[1760608045312,0.10856,111340.0,111320.0,0.19762649]
[1760608045522,0.80774872,111370.0,111320.0,0.28731759]
[1760608045728,0.21712676,111360.0,111330.0,0.17962463]
[1760608045992,0.50674784,111360.0,111320.0,0.26935088]
[1760608046193,0.31817012,111360.0,111330.0,0.17964592]
[1760608046426,0.1084,111350.0,111340.0,0.01549069]
[1760608046652,0.00156431,111370.0,111340.0,0.01549069]
[1760608046867,0.10836,111360.0,111350.0,0.17960193]
[1760608047143,0.10836,111360.0,111350.0,0.0168478]
[1760608047352,0.77003466,111400.0,111350.0,0.28615175]
[1760608047562,0.08969012,111390.0,111360.0,0.17959342]
[1760608047774,0.19793012,111390.0,111360.0,0.17959725]
[1760608048020,0.31793012,111390.0,111370.0,0.01795815]
[1760608048223,0.31793012,111390.0,111370.0,0.19753646]
[1760608048449,0.12,111390.0,111370.0,0.19753646]
[1760608048670,0.10816,111380.0,111370.0,0.01795815]
[1760608048884,0.10816,111380.0,111360.0,0.17959757]
[1760608049097,0.10816,111380.0,111360.0,0.17959756]
[1760608049336,0.10816,111380.0,111360.0,0.19755733]
[1760608049555,0.10816,111380.0,111360.0,0.1795976]
[1760608049985,0.10816,111380.0,111350.0,0.26930395]
[1760608050201,0.17816,111380.0,111360.0,0.01795977]
[1760608050416,0.17816,111380.0,111360.0,0.17959656]
[1760608050640,0.17816,111380.0,111360.0,0.01795977]
[1760608050874,0.18859287,111360.0,111330.0,0.0717521]
[1760608051076,0.19773012,111350.0,111330.0,0.0717521]
[1760608051295,0.32773012,111350.0,111330.0,0.0717521]
[1760608051507,0.32773012,111350.0,111320.0,0.1796613]
[1760608051721,0.32773012,111350.0,111330.0,0.01688773]
[1760608052176,0.50735538,111350.0,111330.0,0.00014949]
[1760608052409,0.21969012,111350.0,111330.0,0.00014949]
[1760608052618,0.13,111350.0,111330.0,0.19775911]
[1760608052832,0.13,111350.0,111330.0,0.01015897]
[1760608052833,0.10812,111340.0,111330.0,0.01015897]
[1760608053047,0.00156412,111380.0,111340.0,0.17962996]
[1760608053274,0.19773012,111370.0,111350.0,0.19756993]
[1760608053487,0.04,111370.0,111360.0,0.1795977]
[1760608053701,0.108,111370.0,111360.0,0.00890774]
[1760608053912,0.108,111370.0,111360.0,0.18850544]
[1760608054128,0.10796,111370.0,111360.0,0.19755747]
[1760608054861,0.1884988,111410.0,111370.0,0.17958075]
[1760608054862,0.19006258,111410.0,111370.0,0.17958075]
[1760608055095,0.2112539,111410.0,111370.0,0.17957912]
[1760608055305,0.10788,111400.0,111380.0,0.01795654]
[1760608055518,0.15788,111400.0,111390.0,0.17954933]
[1760608055740,0.08969012,111410.0,111390.0,0.01795493]
[1760608055971,0.10776,111400.0,111390.0,0.01795493]
[1760608056203,0.00014913,111410.0,111390.0,0.19750044]
[1760608056420,0.00014913,111410.0,111400.0,0.17953321]
[1760608056676,0.00014913,111410.0,111400.0,0.26922333]
[1760608056887,0.10778913,111410.0,111400.0,0.26922333]
[1760608057563,0.00014913,111410.0,111400.0,0.60922333]
[1760608057786,0.10766913,111410.0,111400.0,0.60922333]
[1760608058008,0.00014913,111410.0,111400.0,0.60922333]
[1760608058232,1e-08,111410.0,111400.0,0.60922333]
[1760608058443,1e-08,111430.0,111420.0,0.17950098]
[1760608058670,1e-08,111430.0,111420.0,0.86858082]
[1760608058880,1e-08,111430.0,111420.0,0.85063073]
[1760608059094,1e-08,111430.0,111420.0,1.29807073]
[1760608059514,1e-08,111430.0,111420.0,1.29799073]
[1760608060624,1e-08,111430.0,111420.0,1.33417301]
[1760608061320,1e-08,111430.0,111420.0,1.33915266]
[1760608061966,0.0717521,111480.0,111470.0,0.17942047]
[1760608062189,0.0717521,111480.0,111470.0,1.19055022]
[1760608062190,0.07225032,111480.0,111470.0,1.19055022]
[1760608062477,0.00049822,111480.0,111470.0,0.60911059]
[1760608062744,0.00049822,111480.0,111470.0,1.19055022]
[1760608063879,0.00049822,111480.0,111470.0,0.60911059]
[1760608064090,0.00049822,111480.0,111470.0,0.08969012]
[1760608064297,0.00049822,111480.0,111460.0,0.197366]
[1760608064512,0.00049822,111480.0,111470.0,0.17942047]
[1760608064734,0.00049822,111480.0,111470.0,0.26911059]
[1760608065400,0.00049822,111480.0,111470.0,0.08969012]
[1760608065613,0.00049822,111480.0,111470.0,0.26911059]
[1760608066530,0.00049822,111480.0,111470.0,0.17942047]
[1760608066734,0.00049822,111480.0,111470.0,0.19736251]
[1760608066944,0.00049822,111480.0,111460.0,0.17943632]
[1760608067163,0.00049822,111480.0,111470.0,0.19736251]
[1760608067375,0.10701822,111480.0,111470.0,0.19121457]
[1760608067811,0.00049822,111480.0,111470.0,0.0117941]
[1760608068029,0.00049822,111480.0,111470.0,0.19736251]
[1760608068241,0.00049822,111480.0,111470.0,0.72234662]
[1760608068451,0.10685822,111480.0,111470.0,0.26911059]
[1760608069154,0.00049822,111480.0,111470.0,0.26911059]
[1760608069370,0.00049822,111480.0,111470.0,1.04440458]
[1760608069813,1e-08,111480.0,111470.0,1.47969857]
[1760608070732,1e-08,111480.0,111470.0,0.60911059]
[1760608070948,1e-08,111480.0,111470.0,1.60391329]
[1760608071672,1e-08,111480.0,111470.0,1.60383329]
[1760608071860,1e-08,111480.0,111470.0,0.62724531]
[1760608072075,1e-08,111480.0,111470.0,0.60911059]
[1760608072301,1e-08,111480.0,111470.0,0.70440458]
[1760608072520,1e-08,111480.0,111470.0,0.26911059]
[1760608072752,1e-08,111480.0,111470.0,0.70440458]
[1760608072969,1e-08,111480.0,111470.0,0.26911059]
[1760608073404,1e-08,111480.0,111470.0,0.17942047]
[1760608073619,1e-08,111480.0,111470.0,0.6326565]
[1760608073848,1e-08,111480.0,111470.0,0.17942047]
[1760608074063,1e-08,111480.0,111470.0,0.72234662]
[1760608074310,1e-08,111480.0,111470.0,1.47969857]
[1760608074560,1e-08,111480.0,111470.0,1.04440458]
[1760608075255,1e-08,111480.0,111470.0,0.60911059]
[1760608075488,1e-08,111480.0,111470.0,1.04440458]
[1760608075735,1e-08,111480.0,111470.0,0.26911059]
[1760608075995,1e-08,111480.0,111470.0,0.70440458]
[1760608076408,1e-08,111480.0,111470.0,0.26911059]
[1760608076865,1e-08,111480.0,111470.0,0.70440458]
[1760608077536,1e-08,111480.0,111470.0,1.47969857]
[1760608078903,1e-08,111480.0,111470.0,1.58521857]
[1760608079135,0.0002,111540.0,111530.0,0.17932394]
[1760608079357,0.0002,111540.0,111530.0,0.70430805]
[1760608079358,0.00034948,111540.0,111530.0,0.70430805]
[1760608079566,0.00151864,111540.0,111530.0,0.70430805]
[1760608080441,0.00151864,111540.0,111530.0,0.26901406]
[1760608080699,0.00151864,111540.0,111520.0,0.61463401]
[1760608080917,0.00034948,111540.0,111530.0,0.71851194]
[1760608081141,0.00034948,111540.0,111530.0,0.26901406]
[1760608081359,0.00034948,111540.0,111530.0,0.70430805]
[1760608081604,0.0002,111570.0,111560.0,0.17927572]
[1760608081823,0.0002,111570.0,111560.0,0.28480081]
[1760608082116,0.0002,111570.0,111560.0,0.26896584]
[1760608082341,0.0002,111570.0,111560.0,0.70425983]
[1760608082997,0.0002,111570.0,111560.0,1.13955382]
[1760608083449,1e-08,111570.0,111560.0,1.47955382]
[1760608084338,1e-08,111570.0,111560.0,1.58459382]
[1760608084593,1e-08,111570.0,111560.0,1.59046224]
[1760608084819,0.0002,111610.0,111600.0,0.34]
[1760608085040,0.03280069,111620.0,111610.0,0.17919541]
[1760608085268,0.0717521,111670.0,111610.0,1.07299889]
[1760608085541,0.0717521,111670.0,111660.0,0.61440916]
[1760608085542,0.00014917,111670.0,111660.0,0.61440916]
[1760608085766,0.00014917,111670.0,111660.0,0.17911517]
[1760608085987,0.00014917,111670.0,111660.0,0.63232067]
[1760608086210,0.00014917,111670.0,111660.0,0.70409928]
[1760608086435,0.00014917,111670.0,111660.0,0.26880529]
[1760608086655,0.0089078,111670.0,111660.0,0.70409928]
[1760608086877,0.0089078,111670.0,111660.0,0.26880529]
[1760608087119,0.0089078,111670.0,111660.0,0.08969012]
[1760608087120,0.2237878,111670.0,111660.0,0.08969012]
[1760608087363,0.31347792,111670.0,111640.0,0.01791472]
[1760608087565,0.18808046,111660.0,111620.0,0.0717521]
[1760608087789,0.35777058,111660.0,111620.0,0.0717521]
[1760608088038,0.26882588,111650.0,111620.0,0.0717521]
[1760608088249,0.21969012,111650.0,111620.0,0.0717521]
[1760608088501,0.21969012,111650.0,111630.0,0.19707493]
[1760608088502,0.13,111650.0,111630.0,0.19707493]
[1760608088722,0.2348,111650.0,111640.0,0.17914725]
[1760608088946,0.1048,111650.0,111630.0,0.01791633]
[1760608089167,0.41289081,111650.0,111580.0,0.0717521]
[1760608089406,0.12,111650.0,111630.0,0.17916293]
[1760608089626,0.18805417,111670.0,111640.0,0.01791472]
[1760608089849,0.10492,111660.0,111640.0,0.206016]
[1760608090074,0.1790999,111670.0,111640.0,0.01522037]
[1760608090285,0.10492,111650.0,111620.0,0.18813386]
[1760608090504,0.10492,111650.0,111630.0,0.19707901]
[1760608090728,0.10492,111650.0,111640.0,0.17914725]
[1760608090978,0.10484,111650.0,111640.0,0.17914725]
[1760608091518,0.10484,111650.0,111640.0,0.26883737]
[1760608091775,1.00008,111680.0,111660.0,0.17910645]
[1760608091983,0.1048,111660.0,111630.0,0.18812084]
[1760608092239,0.1048,111660.0,111640.0,0.19706194]
[1760608092438,0.1048,111660.0,111640.0,0.19706197]
[1760608092654,0.1048,111660.0,111640.0,0.01791472]
[1760608092868,0.1048,111660.0,111640.0,0.01219949]
[1760608093121,0.40392271,111660.0,111630.0,0.00014917]
[1760608093342,0.2248,111660.0,111630.0,0.18872884]
[1760608093596,0.2248,111660.0,111650.0,0.17913121]
[1760608093810,1.09191351,111680.0,111660.0,0.1791136]
[1760608094040,0.1046,111670.0,111660.0,0.01791151]
[1760608094263,1.00066346,111680.0,111670.0,0.17909913]
[1760608094485,1.10526346,111680.0,111670.0,0.01790991]
[1760608094707,1.10526346,111680.0,111660.0,0.17911501]
[1760608094967,1.10526346,111680.0,111670.0,0.01790991]
[1760608095178,1.10526346,111680.0,111670.0,0.28669916]
[1760608095394,1.10526346,111680.0,111660.0,0.17911351]
[1760608095618,1.11526346,111680.0,111660.0,0.01247226]
[1760608095843,1.11526346,111680.0,111640.0,0.2508992]
[1760608095844,1.29434664,111680.0,111640.0,0.2508992]
[1760608096063,0.17909945,111670.0,111640.0,0.34073763]
[1760608096304,0.19864507,111670.0,111640.0,0.07190127]
[1760608096530,0.26880739,111660.0,111640.0,0.00014917]
[1760608096759,0.28353121,111650.0,111640.0,0.00014917]
[1760608097016,0.51322133,111650.0,111640.0,0.00014917]
[1760608097455,0.33401012,111650.0,111640.0,0.00014917]
[1760608097664,0.31913121,111650.0,111640.0,0.00014917]
[1760608097893,0.44500361,111650.0,111640.0,0.00014917]
[1760608098115,0.33397012,111650.0,111640.0,0.00014917]
[1760608098342,0.14,111650.0,111640.0,0.26898654]
[1760608098566,0.10424,111660.0,111640.0,0.08983929]
[1760608098833,0.10424,111660.0,111650.0,0.18616479]
[1760608099057,0.10424,111660.0,111650.0,0.00487782]
[1760608099281,0.10424,111660.0,111640.0,0.00014917]
[1760608099282,0.4530476,111660.0,111640.0,0.00014917]
[1760608099515,0.17913121,111650.0,111640.0,0.00014917]
[1760608099736,0.11,111650.0,111640.0,0.00014917]
[1760608099975,0.28913121,111650.0,111640.0,0.00014917]
[1760608100470,0.11,111650.0,111640.0,0.00014917]
[1760608100718,0.28913121,111650.0,111640.0,0.00014917]
[1760608100960,0.41500361,111650.0,111640.0,0.00014917]
[1760608101452,0.93588555,111650.0,111640.0,0.00014917]
[1760608101659,0.41500361,111650.0,111640.0,0.00014917]
[1760608102342,0.41656396,111650.0,111640.0,0.00014917]
[1760608102565,6.2774459,111650.0,111640.0,0.00014917]
[1760608102783,6.27588555,111650.0,111640.0,1e-08]
[1760608103245,6.27744608,111650.0,111640.0,1e-08]
[1760608103458,6.28573792,111650.0,111640.0,1e-08]
[1760608103678,6.27744608,111650.0,111640.0,1e-08]
[1760608103907,1.27744608,111650.0,111640.0,1e-08]
[1760608104131,6.27744608,111650.0,111640.0,1e-08]
[1760608104830,6.38124608,111650.0,111640.0,1e-08]
[1760608105050,1.38124608,111650.0,111640.0,1e-08]
[1760608105288,0.86036414,111650.0,111640.0,1e-08]
[1760608105511,0.41656414,111650.0,111640.0,1e-08]
[1760608105728,0.52028414,111650.0,111640.0,1e-08]
[1760608106171,0.41656414,111650.0,111640.0,1e-08]
[1760608106387,0.52028414,111650.0,111640.0,1e-08]
[1760608107509,1.19584457,111650.0,111640.0,1e-08]
[1760608107976,1.55504213,111650.0,111640.0,1e-08]
[1760608108673,1.5534816,111650.0,111640.0,1e-08]
[1760608109342,0.88589516,111650.0,111640.0,1e-08]
[1760608109558,0.40635288,111650.0,111640.0,1e-08]
[1760608109789,1.15774176,111650.0,111640.0,1e-08]
[1760608110461,0.49051532,111650.0,111640.0,1e-08]
[1760608111136,1.15774176,111650.0,111640.0,1e-08]
[1760608111356,1.15758176,111650.0,111640.0,1e-08]
[1760608111827,1.17839349,111650.0,111640.0,1e-08]
[1760608112052,1.51839349,111650.0,111640.0,1e-08]
[1760608112284,1.55457577,111650.0,111640.0,1e-08]
[1760608112508,1.47535141,111650.0,111640.0,1e-08]
[1760608112732,1.55449577,111650.0,111640.0,1e-08]
[1760608112973,6.57847141,111650.0,111640.0,1e-08]
[1760608113431,1.57847141,111650.0,111640.0,1e-08]
[1760608113668,0.87506269,111650.0,111640.0,1e-08]
[1760608113893,0.85108705,111650.0,111640.0,1e-08]
[1760608114196,0.74796705,111650.0,111640.0,1e-08]
[1760608114413,0.40796705,111650.0,111640.0,1e-08]
[1760608114634,0.51104705,111650.0,111640.0,1e-08]
[1760608114845,0.49179558,111650.0,111640.0,1e-08]
[1760608115281,1.15902202,111650.0,111640.0,1e-08]
[1760608116153,1.05594202,111650.0,111640.0,1e-08]
[1760608116396,0.51106607,111650.0,111640.0,1e-08]
[1760608116638,0.1345283,111650.0,111640.0,1e-08]
[1760608117099,0.99943765,111650.0,111640.0,1e-08]
[1760608117554,1.08912777,111650.0,111640.0,1e-08]
[1760608117766,0.15308,111650.0,111640.0,1e-08]
[1760608118000,0.99943765,111650.0,111640.0,1e-08]
[1760608118710,1.04262837,111650.0,111640.0,1e-08]
[1760608118923,0.39221121,111650.0,111640.0,1e-08]
[1760608119135,1.14912777,111650.0,111640.0,1e-08]
[1760608121399,1.10151042,111650.0,111640.0,1e-08]
[1760608121616,6.20459042,111650.0,111640.0,1e-08]
[1760608121914,6.66304606,111650.0,111640.0,1e-08]
[1760608122129,6.63907042,111650.0,111640.0,1e-08]
[1760608122348,6.67103794,111650.0,111640.0,1e-08]
[1760608122566,6.69798285,111650.0,111640.0,1e-08]
[1760608123218,6.60506346,111650.0,111640.0,1e-08]
[1760608123439,6.58606346,111650.0,111640.0,1e-08]
[1760608123656,6.48298346,111650.0,111640.0,1e-08]
[1760608124107,6.58606346,111650.0,111640.0,1e-08]
[1760608124331,6.48298346,111650.0,111640.0,1e-08]
[1760608124773,6.58606346,111650.0,111640.0,1e-08]
[1760608125464,6.60204723,111650.0,111640.0,1e-08]
[1760608125748,6.63072723,111650.0,111640.0,1e-08]
[1760608126006,6.49896723,111650.0,111640.0,1e-08]
[1760608126228,6.60204723,111650.0,111640.0,1e-08]
[1760608126443,6.49896723,111650.0,111640.0,1e-08]
[1760608126660,6.45101594,111650.0,111640.0,1e-08]
[1760608126868,6.60235907,111650.0,111640.0,1e-08]
[1760608127781,6.45101594,111650.0,111640.0,1e-08]
[1760608127989,6.55409594,111650.0,111640.0,1e-08]
[1760608128207,6.60235241,111650.0,111640.0,1e-08]
[1760608128640,6.61073427,111650.0,111640.0,1e-08]
[1760608128863,6.56247342,111650.0,111640.0,1e-08]
[1760608129089,6.45939342,111650.0,111640.0,1e-08]
[1760608129315,6.57148836,111650.0,111640.0,1e-08]
[1760608129577,6.23672279,111650.0,111640.0,1e-08]
[1760608129806,6.52846247,111650.0,111640.0,1e-08]
[1760608130024,6.64762345,111650.0,111640.0,1e-08]
[1760608130247,6.6339848,111650.0,111640.0,1e-08]
[1760608130463,6.59780252,111650.0,111640.0,1e-08]
[1760608130675,6.64608064,111650.0,111640.0,1e-08]
[1760608130899,1.54300064,111650.0,111640.0,1e-08]
[1760608131112,6.57918292,111650.0,111640.0,1e-08]
[1760608131549,1.2351836,111650.0,111640.0,1e-08]
[1760608131771,1.62998548,111650.0,111640.0,1e-08]
[1760608131993,0.91003763,111650.0,111640.0,1e-08]
[1760608132217,0.98894119,111650.0,111640.0,1e-08]
[1760608132670,0.31333727,111650.0,111640.0,1e-08]
[1760608132890,0.96966185,111650.0,111640.0,1e-08]
[1760608133105,1.14879306,111650.0,111640.0,1e-08]
[1760608133356,1.14041455,111650.0,111640.0,1e-08]
[1760608133775,1.16809274,111650.0,111640.0,1e-08]
[1760608134010,1.25778286,111650.0,111640.0,1e-08]
[1760608135122,1.24940532,111650.0,111640.0,1e-08]
[1760608135355,1.25778302,111650.0,111640.0,1e-08]
[1760608135571,1.25778245,111650.0,111640.0,1e-08]
[1760608135787,1.29396473,111650.0,111640.0,1e-08]
[1760608136476,1.2855876,111650.0,111640.0,1e-08]
[1760608137154,6.31810122,111650.0,111640.0,1e-08]
[1760608137431,6.65966161,111650.0,111640.0,1e-08]
[1760608138098,6.56466813,111650.0,111640.0,1e-08]
[1760608138327,6.56310774,111650.0,111640.0,1e-08]
[1760608138555,6.7767229,111650.0,111640.0,1e-08]
[1760608138802,0.21537769,111610.0,111600.0,0.0717521]
[1760608139035,1.19533425,111610.0,111600.0,0.07190135]
[1760608139307,1.2146349,111610.0,111600.0,0.07190135]
[1760608139551,1.2146349,111610.0,111600.0,0.00014925]
[1760608140100,1.5546349,111610.0,111600.0,0.00014925]
[1760608140340,0.88736846,111610.0,111600.0,0.00014925]
[1760608140562,1.1115949,111610.0,111600.0,0.00014925]
[1760608140797,1.2145949,111610.0,111600.0,0.00014925]
[1760608141284,6.2145949,111610.0,111600.0,0.00014925]
[1760608141517,6.55615583,111610.0,111600.0,0.00014925]
[1760608141745,6.21615583,111610.0,111600.0,0.00014925]
[1760608142439,6.4772885,111610.0,111600.0,0.00014925]